[Event "Reykjavik Open 2025"]
[Site "Reykjavik, Iceland"]
[Date "2025.04.10"]
[Round "3.10"]
[White "Song, Yuxin"]
[Black "Adhiban, B.."]
[Result "1/2-1/2"]
[ECO "B56"]
[WhiteElo "2371"]
[BlackElo "2554"]
[PlyCount "75"]
[EventDate "2025.??.??"]
[TimeControl "90+30"]
[WhiteClock "0:14:33"]
[BlackClock "0:14:45"]

1. e4 {[%emt 0:00:00]} c5 {[%emt 0:00:00]} 2. Nf3 {[%emt 0:00:00]} d6 {[%emt 0:
00:00]} 3. d4 {[%emt 0:00:00]} cxd4 {[%emt 0:00:00]} 4. Nxd4 {[%emt 0:00:00]}
Nf6 {[%emt 0:00:00]} 5. Nc3 {[%emt 0:00:00]} Nc6 {[%emt 0:00:00]} 6. f3 {
[%emt 0:00:00]} e5 {[%emt 0:00:00]} 7. Nb3 {[%emt 0:00:00]} Be7 {[%emt 0:00:00]
} 8. Be3 {[%emt 0:00:00]} O-O {[%emt 0:00:00]} 9. Qd2 {[%emt 0:00:00]} a5 {
[%emt 0:00:00]} 10. Bb5 {[%emt 0:00:00]} Be6 {[%emt 0:00:00]} 11. O-O-O {
[%emt 0:00:00]} Qb8 {[%emt 0:00:00]} 12. Kb1 {[%emt 0:00:00]} Rc8 {[%emt 0:00:
00]} 13. g4 {[%emt 0:00:00]} Na7 {[%emt 0:00:00]} 14. Bxa7 {[%emt 0:00:00]}
Qxa7 {[%emt 0:00:00]} 15. a4 {[%emt 0:00:00]} Rc7 {[%emt 0:00:00]} 16. Nd5 {
[%emt 0:00:00]} Nxd5 {[%emt 0:00:00]} 17. exd5 {[%emt 0:00:00]} Bd7 {[%emt 0:
00:00]} 18. Bxd7 {[%emt 0:00:00]} Rxd7 {[%emt 0:00:00]} 19. Qe2 {[%emt 0:00:00]
} b5 {[%emt 0:00:00]} 20. Qxb5 {[%emt 0:00:00]} Rb7 {[%emt 0:00:00]} 21. Qc4 {
[%emt 0:00:00]} Rb4 {[%emt 0:00:00]} 22. Qc6 {[%emt 0:00:00]} Rb6 {[%emt 0:00:
00]} 23. Qc4 {[%emt 0:00:00]} Qd7 {[%emt 0:00:00]} 24. Rhe1 {[%emt 0:00:00]}
Rc8 {[%emt 0:00:00]} 25. Qd3 {[%emt 0:00:00]} Qxa4 {[%emt 0:00:00]} 26. Re4 {
[%emt 0:00:00]} Qb5 {[%emt 0:00:00]} 27. Qxb5 {[%emt 0:00:00]} Rxb5 {[%emt 0:
00:00]} 28. Rd3 {[%emt 0:00:00]} Bd8 {[%emt 0:00:00]} 29. f4 {[%emt 0:00:00]}
f6 {[%emt 0:00:00]} 30. Nd2 {[%emt 0:00:00]} Bb6 {[%emt 0:00:00]} 31. Nc4 {
[%emt 0:00:00]} Bc5 {[%emt 0:00:00]} 32. f5 {[%emt 0:00:00]} Rcb8 {[%emt 0:00:
00]} 33. c3 {[%emt 0:00:00]} a4 {[%emt 0:00:00]} 34. Kc2 {[%emt 0:00:00]} Rb3 {
[%emt 0:00:00]} 35. Rd1 {[%emt 0:03:19]} a3 {[%emt 0:00:00]} 36. bxa3 {[%emt 0:
01:46]} Bxa3 {[%emt 0:00:00]} 37. Re3 {[%emt 0:00:32]} Bc5 {[%emt 0:05:15]} 38.
Re2 {[%emt 0:00:20]} 1/2-1/2

[Event "Reykjavik Open 2025"]
[Site "Reykjavik, Iceland"]
[Date "2025.04.10"]
[Round "3.11"]
[White "Bekker, Stefan"]
[Black "Amar, Elham"]
[Result "1/2-1/2"]
[ECO "B30"]
[WhiteElo "2358"]
[BlackElo "2546"]
[PlyCount "61"]
[EventDate "2025.??.??"]
[TimeControl "90+30"]
[WhiteClock "0:27:17"]
[BlackClock "1:07:13"]

1. e4 {[%emt 0:00:00]} c5 {[%emt 0:00:00]} 2. Nf3 {[%emt 0:00:00]} Nc6 {
[%emt 0:00:00]} 3. Bb5 {[%emt 0:00:00]} e6 {[%emt 0:00:00]} 4. O-O {[%emt 0:00:
00]} Nge7 {[%emt 0:00:00]} 5. Re1 {[%emt 0:00:00]} Nd4 {[%emt 0:00:00]} 6. Nxd4
{[%emt 0:00:00]} cxd4 {[%emt 0:00:00]} 7. c3 {[%emt 0:00:00]} a6 {[%emt 0:00:
00]} 8. Ba4 {[%emt 0:00:00]} b5 {[%emt 0:00:00]} 9. Bb3 {[%emt 0:00:00]} Nc6 {
[%emt 0:00:00]} 10. a4 {[%emt 0:00:00]} b4 {[%emt 0:00:00]} 11. Bd5 {[%emt 0:
00:00]} Bc5 {[%emt 0:00:00]} 12. cxb4 {[%emt 0:00:00]} Bxb4 {[%emt 0:00:00]}
13. Bxc6 {[%emt 0:00:00]} dxc6 {[%emt 0:00:00]} 14. b3 {[%emt 0:00:00]} e5 {
[%emt 0:00:00]} 15. Ba3 {[%emt 0:00:00]} c5 {[%emt 0:00:00]} 16. Bxb4 {[%emt 0:
00:00]} cxb4 {[%emt 0:00:00]} 17. d3 {[%emt 0:00:00]} Be6 {[%emt 0:00:00]} 18.
Nd2 {[%emt 0:00:00]} Rc8 {[%emt 0:00:00]} 19. Nc4 {[%emt 0:00:00]} Bxc4 {
[%emt 0:00:00]} 20. dxc4 {[%emt 0:00:00]} O-O {[%emt 0:00:00]} 21. Qd2 {
[%emt 0:00:00]} a5 {[%emt 0:00:00]} 22. f4 {[%emt 0:00:00]} f6 {[%emt 0:00:00]}
23. f5 {[%emt 0:00:00]} Qd7 {[%emt 0:00:00]} 24. Qd3 {[%emt 0:00:00]} g6 {
[%emt 0:00:00]} 25. Rf1 {[%emt 0:00:00]} Kh8 {[%emt 0:00:00]} 26. Rf3 {[%emt 0:
00:00]} Rg8 {[%emt 0:00:00]} 27. Raf1 {[%emt 0:00:00]} Qc6 {[%emt 0:00:00]} 28.
h3 {[%emt 0:00:00]} Rc7 {[%emt 0:00:00]} 29. fxg6 {[%emt 0:00:00]} Rxg6 {
[%emt 0:00:00]} 30. Rf5 {[%emt 0:00:00]} Kg7 {[%emt 0:00:00]} 31. Qd1 {[%emt 0:
00:00]} 1/2-1/2

[Event "Reykjavik Open 2025"]
[Site "Reykjavik, Iceland"]
[Date "2025.04.10"]
[Round "3.12"]
[White "Li, Guohao"]
[Black "Stefansson, Vignir Vatnar"]
[Result "1/2-1/2"]
[ECO "D37"]
[WhiteElo "2356"]
[BlackElo "2536"]
[PlyCount "80"]
[EventDate "2025.??.??"]
[TimeControl "90+30"]
[WhiteClock "0:33:35"]
[BlackClock "0:05:11"]

1. d4 {[%emt 0:00:00]} Nf6 {[%emt 0:00:00]} 2. c4 {[%emt 0:00:00]} e6 {[%emt 0:
00:00]} 3. Nf3 {[%emt 0:00:00]} d5 {[%emt 0:00:00]} 4. Nc3 {[%emt 0:00:00]} a6
{[%emt 0:00:00]} 5. cxd5 {[%emt 0:00:00]} exd5 {[%emt 0:00:00]} 6. Bf4 {
[%emt 0:00:00]} Bd6 {[%emt 0:00:00]} 7. Be5 {[%emt 0:00:00]} Be6 {[%emt 0:00:
00]} 8. e3 {[%emt 0:00:00]} Bxe5 {[%emt 0:00:00]} 9. dxe5 {[%emt 0:00:00]} Nfd7
{[%emt 0:00:00]} 10. Be2 {[%emt 0:00:00]} Nc6 {[%emt 0:00:00]} 11. Nxd5 {
[%emt 0:00:00]} Ndxe5 {[%emt 0:00:00]} 12. Nc3 {[%emt 0:00:00]} O-O {[%emt 0:
00:00]} 13. O-O {[%emt 0:00:00]} Qf6 {[%emt 0:00:00]} 14. Qa4 {[%emt 0:00:00]}
Nd7 {[%emt 0:00:00]} 15. Rfd1 {[%emt 0:00:00]} Nb6 {[%emt 0:00:00]} 16. Qc2 {
[%emt 0:00:00]} Bf5 {[%emt 0:00:00]} 17. Qb3 {[%emt 0:00:00]} Be6 {[%emt 0:00:
00]} 18. Qc2 {[%emt 0:00:00]} Bf5 {[%emt 0:00:00]} 19. Qb3 {[%emt 0:00:00]}
Rad8 {[%emt 0:00:00]} 20. Rxd8 {[%emt 0:00:00]} Rxd8 {[%emt 0:00:00]} 21. Rd1 {
[%emt 0:00:00]} h6 {[%emt 0:00:00]} 22. h3 {[%emt 0:00:00]} Qe7 {[%emt 0:00:00]
} 23. Rd2 {[%emt 0:00:00]} Rxd2 {[%emt 0:00:00]} 24. Nxd2 {[%emt 0:00:00]} Qd7
{[%emt 0:00:00]} 25. Nde4 {[%emt 0:00:00]} Qe7 {[%emt 0:00:00]} 26. Nd2 {
[%emt 0:00:00]} Be6 {[%emt 0:00:00]} 27. Qc2 {[%emt 0:00:00]} Nb4 {[%emt 0:00:
00]} 28. Qe4 {[%emt 0:00:00]} c6 {[%emt 0:00:00]} 29. a3 {[%emt 0:00:00]} N4d5
{[%emt 0:00:00]} 30. Nxd5 {[%emt 0:00:00]} Nxd5 {[%emt 0:00:00]} 31. Qd4 {
[%emt 0:00:00]} Qf6 {[%emt 0:00:00]} 32. Qxf6 {[%emt 0:00:00]} Nxf6 {[%emt 0:
00:00]} 33. e4 {[%emt 0:00:00]} g5 {[%emt 0:00:00]} 34. f3 {[%emt 0:00:00]} Kf8
{[%emt 0:00:00]} 35. Kf2 {[%emt 0:00:00]} Ke7 {[%emt 0:00:00]} 36. g4 {[%emt 0:
00:00]} h5 {[%emt 0:08:18]} 37. e5 {[%emt 0:00:00]} Nd7 {[%emt 0:01:10]} 38.
Ne4 {[%emt 0:00:00]} hxg4 {[%emt 0:00:27]} 39. fxg4 {[%emt 0:00:00]} Nxe5 {
[%emt 0:00:08]} 40. Nxg5 {[%emt 0:00:00]} Bd5 {[%emt 0:06:16]} 1/2-1/2

[Event "Reykjavik Open 2025"]
[Site "Reykjavik, Iceland"]
[Date "2025.04.10"]
[Round "3.13"]
[White "Draskovic, Luka"]
[Black "Borne, Felix"]
[Result "1/2-1/2"]
[ECO "A14"]
[WhiteElo "2488"]
[BlackElo "2225"]
[PlyCount "88"]
[EventDate "2025.??.??"]
[TimeControl "90+30"]
[WhiteClock "0:31:11"]
[BlackClock "0:30:16"]

1. c4 {[%emt 0:00:00]} Nf6 {[%emt 0:00:00]} 2. Nf3 {[%emt 0:00:00]} e6 {
[%emt 0:00:00]} 3. g3 {[%emt 0:00:00]} d5 {[%emt 0:00:00]} 4. Bg2 {[%emt 0:00:
00]} Be7 {[%emt 0:00:00]} 5. O-O {[%emt 0:00:00]} O-O {[%emt 0:00:00]} 6. b3 {
[%emt 0:00:00]} c5 {[%emt 0:00:00]} 7. cxd5 {[%emt 0:00:00]} Nxd5 {[%emt 0:00:
00]} 8. Bb2 {[%emt 0:00:00]} Nc6 {[%emt 0:00:00]} 9. d4 {[%emt 0:00:00]} cxd4 {
[%emt 0:00:00]} 10. Nxd4 {[%emt 0:00:00]} Nxd4 {[%emt 0:00:00]} 11. Qxd4 {
[%emt 0:00:00]} Bf6 {[%emt 0:00:00]} 12. Qd2 {[%emt 0:00:00]} b6 {[%emt 0:00:
00]} 13. Rd1 {[%emt 0:00:00]} Bb7 {[%emt 0:00:00]} 14. Na3 {[%emt 0:00:00]} Qe7
{[%emt 0:00:00]} 15. e4 {[%emt 0:00:00]} Bxb2 {[%emt 0:00:00]} 16. Qxb2 {
[%emt 0:00:00]} Nb4 {[%emt 0:00:00]} 17. Nc4 {[%emt 0:00:00]} Rfd8 {[%emt 0:00:
00]} 18. a3 {[%emt 0:00:00]} Nd3 {[%emt 0:00:00]} 19. Qc2 {[%emt 0:00:00]} Nc5
{[%emt 0:00:00]} 20. b4 {[%emt 0:00:00]} Na6 {[%emt 0:00:00]} 21. Qa4 {[%emt 0:
00:00]} Qc7 {[%emt 0:00:00]} 22. Rxd8+ {[%emt 0:00:00]} Rxd8 {[%emt 0:00:00]}
23. Rd1 {[%emt 0:00:00]} Rxd1+ {[%emt 0:00:00]} 24. Qxd1 {[%emt 0:00:00]} Bc6 {
[%emt 0:00:00]} 25. h4 {[%emt 0:01:15]} Kf8 {[%emt 0:04:15]} 26. Qd4 {[%emt 0:
03:03]} Nb8 {[%emt 0:00:21]} 27. Nd6 {[%emt 0:02:43]} Qd7 {[%emt 0:02:38]} 28.
b5 {[%emt 0:04:34]} Ba8 {[%emt 0:00:33]} 29. e5 {[%emt 0:02:07]} Bxg2 {[%emt 0:
00:11]} 30. Kxg2 {[%emt 0:00:01]} Qc7 {[%emt 0:02:12]} 31. Qf4 {[%emt 0:01:13]}
Qe7 {[%emt 0:03:21]} 32. Qe4 {[%emt 0:01:24]} f5 {[%emt 0:01:32]} 33. Qc4 {
[%emt 0:00:36]} Qd7 {[%emt 0:01:04]} 34. a4 {[%emt 0:00:21]} Ke7 {[%emt 0:00:
19]} 35. Qf4 {[%emt 0:00:38]} Kf8 {[%emt 0:01:33]} 36. g4 {[%emt 0:00:34]} g6 {
[%emt 0:00:09]} 37. Kh2 {[%emt 0:00:47]} Qe7 {[%emt 0:00:25]} 38. gxf5 {
[%emt 0:00:12]} exf5 {[%emt 0:00:41]} 39. e6 {[%emt 0:00:58]} Qxe6 {[%emt 0:00:
31]} 40. Nxf5 {[%emt 0:00:21]} Qxf5 {[%emt 0:01:09]} 41. Qxb8+ {[%emt 0:00:02]}
Kg7 {[%emt 0:00:00]} 42. Qxa7+ {[%emt 0:00:00]} Kh6 {[%emt 0:00:00]} 43. Qxb6 {
[%emt 0:00:00]} Qf4+ {[%emt 0:00:00]} 44. Kg2 {[%emt 0:00:00]} Qg4+ {[%emt 0:
00:00]} 1/2-1/2

[Event "Reykjavik Open 2025"]
[Site "Reykjavik, Iceland"]
[Date "2025.04.10"]
[Round "3.20"]
[White "Jonsson, Johann"]
[Black "Lacroix, Romain"]
[Result "0-1"]
[ECO "A46"]
[WhiteElo "1890"]
[BlackElo "2101"]
[PlyCount "64"]
[EventDate "2025.??.??"]
[TimeControl "90+30"]
[WhiteClock "0:05:02"]
[BlackClock "0:07:23"]

1. d4 {[%emt 0:00:00]} Nf6 {[%emt 0:00:00]} 2. Nf3 {[%emt 0:00:00]} e6 {
[%emt 0:00:00]} 3. Bf4 {[%emt 0:00:00]} c5 {[%emt 0:00:00]} 4. e3 {[%emt 0:00:
00]} Nc6 {[%emt 0:00:00]} 5. c3 {[%emt 0:00:00]} d5 {[%emt 0:00:00]} 6. Bd3 {
[%emt 0:00:00]} Bd6 {[%emt 0:00:00]} 7. Bg3 {[%emt 0:00:00]} O-O {[%emt 0:00:
00]} 8. O-O {[%emt 0:00:00]} b6 {[%emt 0:00:00]} 9. Re1 {[%emt 0:00:00]} Bb7 {
[%emt 0:00:00]} 10. Nbd2 {[%emt 0:00:00]} Ne7 {[%emt 0:00:00]} 11. e4 {[%emt 0:
00:00]} dxe4 {[%emt 0:00:00]} 12. Nxe4 {[%emt 0:00:00]} Nxe4 {[%emt 0:00:00]}
13. Bxe4 {[%emt 0:00:00]} Bxe4 {[%emt 0:00:00]} 14. Rxe4 {[%emt 0:00:00]} Nf5 {
[%emt 0:00:00]} 15. Bxd6 {[%emt 0:00:00]} Qxd6 {[%emt 0:00:00]} 16. Qe2 {
[%emt 0:00:00]} Rfd8 {[%emt 0:00:00]} 17. dxc5 {[%emt 0:00:00]} Qxc5 {[%emt 0:
00:00]} 18. Qc4 {[%emt 0:00:00]} Qe7 {[%emt 0:00:00]} 19. Ree1 {[%emt 0:00:00]}
Rac8 {[%emt 0:00:00]} 20. Qa4 {[%emt 0:00:00]} h5 {[%emt 0:00:00]} 21. Rad1 {
[%emt 0:00:00]} g5 {[%emt 0:00:00]} 22. Qe4 {[%emt 0:00:00]} Qf6 {[%emt 0:00:
00]} 23. h3 {[%emt 0:00:00]} Kg7 {[%emt 0:00:00]} 24. Ne5 {[%emt 0:00:00]} Rc7
{[%emt 0:00:00]} 25. Qe2 {[%emt 0:00:00]} Kh6 {[%emt 0:00:00]} 26. g4 {[%emt 0:
00:00]} Rxd1 {[%emt 0:00:00]} 27. Qxd1 {[%emt 0:00:00]} Nh4 {[%emt 0:01:29]}
28. gxh5 {[%emt 0:00:00]} Kg7 {[%emt 0:02:32]} 29. Ng4 {[%emt 0:03:41]} Qf4 {
[%emt 0:02:33]} 30. Re3 {[%emt 0:03:08]} Rc5 {[%emt 0:01:13]} 31. h6+ {[%emt 0:
03:28]} Kh7 {[%emt 0:01:01]} 32. Qd7 {[%emt 0:02:11]} Rd5 {[%emt 0:01:19]} 0-1

[Event "Reykjavik Open 2025"]
[Site "Reykjavik, Iceland"]
[Date "2025.04.10"]
[Round "3.23"]
[White "Blanchet, Mathieu"]
[Black "Yu, Tianxiang Carlos"]
[Result "1/2-1/2"]
[ECO "A57"]
[WhiteElo "2091"]
[BlackElo "1843"]
[PlyCount "67"]
[EventDate "2025.??.??"]
[TimeControl "90+30"]
[WhiteClock "0:06:36"]
[BlackClock "0:04:18"]

1. d4 {[%emt 0:00:00]} Nf6 {[%emt 0:00:00]} 2. c4 {[%emt 0:00:00]} c5 {[%emt 0:
00:00]} 3. d5 {[%emt 0:00:00]} b5 {[%emt 0:00:00]} 4. Qc2 {[%emt 0:00:00]} b4 {
[%emt 0:00:00]} 5. a3 {[%emt 0:00:00]} a5 {[%emt 0:00:00]} 6. e4 {[%emt 0:00:
00]} d6 {[%emt 0:00:00]} 7. Bd3 {[%emt 0:00:00]} g6 {[%emt 0:00:00]} 8. Nf3 {
[%emt 0:00:00]} Bg7 {[%emt 0:00:00]} 9. O-O {[%emt 0:00:00]} O-O {[%emt 0:00:
00]} 10. h3 {[%emt 0:00:00]} Na6 {[%emt 0:00:00]} 11. Qd1 {[%emt 0:00:00]} e5 {
[%emt 0:00:00]} 12. dxe6 {[%emt 0:00:00]} Bxe6 {[%emt 0:00:00]} 13. Re1 {
[%emt 0:00:00]} Nd7 {[%emt 0:00:00]} 14. Nbd2 {[%emt 0:00:00]} bxa3 {[%emt 0:
00:00]} 15. Rxa3 {[%emt 0:00:00]} Nb4 {[%emt 0:00:00]} 16. Nf1 {[%emt 0:00:00]}
Ne5 {[%emt 0:00:00]} 17. Nxe5 {[%emt 0:00:00]} Bxe5 {[%emt 0:00:00]} 18. Ne3 {
[%emt 0:00:00]} Qf6 {[%emt 0:00:00]} 19. Qe2 {[%emt 0:00:00]} Nc6 {[%emt 0:00:
00]} 20. Nd5 {[%emt 0:00:00]} Bxd5 {[%emt 0:00:00]} 21. cxd5 {[%emt 0:00:00]}
Nd4 {[%emt 0:00:00]} 22. Qf1 {[%emt 0:00:00]} g5 {[%emt 0:00:00]} 23. Be3 {
[%emt 0:00:00]} Rfb8 {[%emt 0:00:00]} 24. Rb1 {[%emt 0:00:00]} Kh8 {[%emt 0:00:
00]} 25. Qe1 {[%emt 0:00:00]} a4 {[%emt 0:00:00]} 26. Bxd4 {[%emt 0:00:00]}
Bxd4 {[%emt 0:00:00]} 27. Bc2 {[%emt 0:00:00]} Rb4 {[%emt 0:00:00]} 28. b3 {
[%emt 0:00:00]} Rab8 {[%emt 0:05:39]} 29. Rxa4 {[%emt 0:00:00]} Bc3 {[%emt 0:
01:32]} 30. Qe2 {[%emt 0:01:18]} Rxa4 {[%emt 0:01:13]} 31. bxa4 {[%emt 0:00:01]
} Rxb1+ {[%emt 0:00:01]} 32. Bxb1 {[%emt 0:00:01]} Qd4 {[%emt 0:01:25]} 33. Qc2
{[%emt 0:05:51]} Kg8 {[%emt 0:03:52]} 34. Qd3 {[%emt 0:04:43]} 1/2-1/2

[Event "Reykjavik Open 2025"]
[Site "Reykjavik, Iceland"]
[Date "2025.04.10"]
[Round "3.27"]
[White "Safarli, Eltaj"]
[Black "Llari, Marc"]
[Result "1-0"]
[ECO "B31"]
[WhiteElo "2617"]
[BlackElo "2299"]
[PlyCount "69"]
[EventDate "2025.??.??"]
[TimeControl "90+30"]
[WhiteClock "0:50:36"]
[BlackClock "0:20:43"]

1. e4 {[%emt 0:00:00]} c5 {[%emt 0:00:00]} 2. Nf3 {[%emt 0:00:00]} Nc6 {
[%emt 0:00:00]} 3. Bb5 {[%emt 0:00:00]} g6 {[%emt 0:00:00]} 4. O-O {[%emt 0:00:
00]} Bg7 {[%emt 0:00:00]} 5. d3 {[%emt 0:00:00]} e5 {[%emt 0:00:00]} 6. a3 {
[%emt 0:00:00]} Nge7 {[%emt 0:00:00]} 7. b4 {[%emt 0:00:00]} d6 {[%emt 0:00:00]
} 8. bxc5 {[%emt 0:00:00]} dxc5 {[%emt 0:00:00]} 9. Bg5 {[%emt 0:00:00]} Qc7 {
[%emt 0:00:00]} 10. Nc3 {[%emt 0:00:00]} Be6 {[%emt 0:00:00]} 11. Be3 {[%emt 0:
00:00]} a6 {[%emt 0:00:00]} 12. Bc4 {[%emt 0:00:00]} Nd4 {[%emt 0:00:00]} 13.
Bxe6 {[%emt 0:00:00]} fxe6 {[%emt 0:00:00]} 14. Nd2 {[%emt 0:00:00]} O-O {
[%emt 0:00:00]} 15. Ne2 {[%emt 0:00:00]} Rad8 {[%emt 0:00:00]} 16. a4 {[%emt 0:
00:00]} Nec6 {[%emt 0:00:00]} 17. c3 {[%emt 0:00:00]} Nxe2+ {[%emt 0:00:00]}
18. Qxe2 {[%emt 0:00:00]} Qd6 {[%emt 0:00:00]} 19. Nb3 {[%emt 0:00:00]} b6 {
[%emt 0:00:00]} 20. a5 {[%emt 0:00:00]} Nxa5 {[%emt 0:00:00]} 21. Nxa5 {
[%emt 0:00:00]} bxa5 {[%emt 0:00:00]} 22. Rfd1 {[%emt 0:00:00]} Qc6 {[%emt 0:
00:00]} 23. c4 {[%emt 0:00:00]} a4 {[%emt 0:00:00]} 24. Qc2 {[%emt 0:00:00]}
Rf7 {[%emt 0:00:00]} 25. Qxa4 {[%emt 0:00:00]} Qxa4 {[%emt 0:00:00]} 26. Rxa4 {
[%emt 0:00:00]} Rfd7 {[%emt 0:00:00]} 27. Ra3 {[%emt 0:00:00]} Bf8 {[%emt 0:00:
00]} 28. Kf1 {[%emt 0:00:00]} Kf7 {[%emt 0:00:00]} 29. Ke2 {[%emt 0:00:00]} Ra7
{[%emt 0:00:00]} 30. Rda1 {[%emt 0:00:00]} Rc8 {[%emt 0:00:00]} 31. Rxa6 {
[%emt 0:00:00]} Rxa6 {[%emt 0:00:00]} 32. Rxa6 {[%emt 0:00:00]} Rc7 {[%emt 0:
00:00]} 33. Bd2 {[%emt 0:00:00]} Ke7 {[%emt 0:00:00]} 34. Ba5 {[%emt 0:00:00]}
Rb7 {[%emt 0:00:00]} 35. Bc3 {[%emt 0:00:00]} 1-0

[Event "Reykjavik Open 2025"]
[Site "Reykjavik, Iceland"]
[Date "2025.04.10"]
[Round "3.28"]
[White "Maze, Sebastien"]
[Black "Ronka, Erik"]
[Result "1-0"]
[ECO "C55"]
[WhiteElo "2557"]
[BlackElo "2295"]
[PlyCount "121"]
[EventDate "2025.??.??"]
[TimeControl "90+30"]
[WhiteClock "0:08:15"]
[BlackClock "0:01:58"]

1. e4 {[%emt 0:00:00]} e5 {[%emt 0:00:00]} 2. Nf3 {[%emt 0:00:00]} Nc6 {
[%emt 0:00:00]} 3. Bc4 {[%emt 0:00:00]} Nf6 {[%emt 0:00:00]} 4. d3 {[%emt 0:00:
00]} d5 {[%emt 0:00:00]} 5. exd5 {[%emt 0:00:00]} Nxd5 {[%emt 0:00:00]} 6. O-O
{[%emt 0:00:00]} Bc5 {[%emt 0:00:00]} 7. Nbd2 {[%emt 0:00:00]} O-O {[%emt 0:00:
00]} 8. Re1 {[%emt 0:00:00]} f6 {[%emt 0:00:00]} 9. Ne4 {[%emt 0:00:00]} Bb6 {
[%emt 0:00:00]} 10. a4 {[%emt 0:00:00]} a5 {[%emt 0:00:00]} 11. c3 {[%emt 0:00:
00]} Kh8 {[%emt 0:00:00]} 12. Qb3 {[%emt 0:00:00]} Nce7 {[%emt 0:00:00]} 13. h3
{[%emt 0:00:00]} c6 {[%emt 0:00:00]} 14. Qa3 {[%emt 0:00:00]} Bc7 {[%emt 0:00:
00]} 15. d4 {[%emt 0:00:00]} f5 {[%emt 0:00:00]} 16. Bxd5 {[%emt 0:00:00]} cxd5
{[%emt 0:00:00]} 17. Bg5 {[%emt 0:00:00]} Re8 {[%emt 0:00:00]} 18. Nf6 {
[%emt 0:00:00]} gxf6 {[%emt 0:00:00]} 19. Bxf6+ {[%emt 0:00:00]} Kg8 {[%emt 0:
00:00]} 20. dxe5 {[%emt 0:00:00]} Qd7 {[%emt 0:00:00]} 21. c4 {[%emt 0:00:00]}
Ng6 {[%emt 0:00:00]} 22. Rad1 {[%emt 0:00:00]} d4 {[%emt 0:00:00]} 23. h4 {
[%emt 0:00:00]} f4 {[%emt 0:01:20]} 24. h5 {[%emt 0:00:00]} Nf8 {[%emt 0:00:03]
} 25. Nxd4 {[%emt 0:00:00]} Qg4 {[%emt 0:00:26]} 26. Qc5 {[%emt 0:00:52]} Bd8 {
[%emt 0:08:09]} 27. Qd5+ {[%emt 0:05:30]} Be6 {[%emt 0:00:03]} 28. Qxb7 {
[%emt 0:03:24]} Bxf6 {[%emt 0:01:32]} 29. exf6 {[%emt 0:00:02]} Bf7 {[%emt 0:
01:16]} 30. Nf3 {[%emt 0:03:00]} Qxh5 {[%emt 0:01:12]} 31. Re7 {[%emt 0:01:14]}
Rab8 {[%emt 0:01:52]} 32. Qc7 {[%emt 0:01:01]} Rbc8 {[%emt 0:00:08]} 33. Qxf4 {
[%emt 0:00:35]} Ng6 {[%emt 0:01:18]} 34. Qg3 {[%emt 0:00:49]} Kf8 {[%emt 0:00:
36]} 35. Rdd7 {[%emt 0:01:56]} Rxe7 {[%emt 0:00:23]} 36. fxe7+ {[%emt 0:00:08]}
Nxe7 {[%emt 0:00:33]} 37. Qd6 {[%emt 0:00:22]} Qc5 {[%emt 0:00:29]} 38. Qf6 {
[%emt 0:00:38]} Ke8 {[%emt 0:00:33]} 39. Rb7 {[%emt 0:00:45]} Rd8 {[%emt 0:00:
33]} 40. Ne5 {[%emt 0:00:37]} Bg8 {[%emt 0:00:32]} 41. Qg7 {[%emt 0:00:00]} Be6
{[%emt 0:00:00]} 42. b3 {[%emt 0:00:00]} Ng6 {[%emt 0:00:00]} 43. Rb5 {[%emt 0:
00:00]} Qd4 {[%emt 0:00:00]} 44. Qf6 {[%emt 0:00:00]} Qd1+ {[%emt 0:00:00]} 45.
Kh2 {[%emt 0:00:00]} Qh5+ {[%emt 0:00:00]} 46. Kg3 {[%emt 0:00:00]} Qf5 {
[%emt 0:00:00]} 47. Qxf5 {[%emt 0:00:00]} Bxf5 {[%emt 0:00:00]} 48. Rxa5 {
[%emt 0:00:00]} Bc2 {[%emt 0:01:23]} 49. b4 {[%emt 0:00:00]} Nxe5 {[%emt 0:01:
09]} 50. Rxe5+ {[%emt 0:00:00]} Kf7 {[%emt 0:00:05]} 51. a5 {[%emt 0:00:00]}
Bd3 {[%emt 0:01:11]} 52. Rc5 {[%emt 0:00:00]} Ke6 {[%emt 0:01:04]} 53. a6 {
[%emt 0:00:00]} Be4 {[%emt 0:00:32]} 54. f3 {[%emt 0:00:08]} Ba8 {[%emt 0:00:
29]} 55. b5 {[%emt 0:00:55]} Kd6 {[%emt 0:00:09]} 56. Rh5 {[%emt 0:00:04]} Rg8+
{[%emt 0:01:04]} 57. Kf2 {[%emt 0:00:29]} Rc8 {[%emt 0:00:34]} 58. b6 {[%emt 0:
00:10]} Bc6 {[%emt 0:00:04]} 59. c5+ {[%emt 0:00:13]} Ke6 {[%emt 0:00:39]} 60.
Rxh7 {[%emt 0:00:20]} Bd5 {[%emt 0:00:11]} 61. b7 {[%emt 0:00:33]} 1-0

[Event "Reykjavik Open 2025"]
[Site "Reykjavik, Iceland"]
[Date "2025.04.10"]
[Round "3.29"]
[White "Friedel, Joshua"]
[Black "Xu, Yuanyuan"]
[Result "1-0"]
[ECO "A05"]
[WhiteElo "2552"]
[BlackElo "2288"]
[PlyCount "71"]
[EventDate "2025.??.??"]
[TimeControl "90+30"]
[WhiteClock "0:16:42"]
[BlackClock "0:01:20"]

1. Nf3 {[%emt 0:00:00]} Nf6 {[%emt 0:00:00]} 2. g3 {[%emt 0:00:00]} d5 {
[%emt 0:00:00]} 3. Bg2 {[%emt 0:00:00]} g6 {[%emt 0:00:00]} 4. c4 {[%emt 0:00:
00]} d4 {[%emt 0:00:00]} 5. b4 {[%emt 0:00:00]} c5 {[%emt 0:00:00]} 6. Bb2 {
[%emt 0:00:00]} Bg7 {[%emt 0:00:00]} 7. O-O {[%emt 0:00:00]} O-O {[%emt 0:00:
00]} 8. d3 {[%emt 0:00:00]} Nc6 {[%emt 0:00:00]} 9. b5 {[%emt 0:00:00]} Nb8 {
[%emt 0:00:00]} 10. e3 {[%emt 0:00:00]} dxe3 {[%emt 0:00:00]} 11. fxe3 {
[%emt 0:00:00]} a6 {[%emt 0:00:00]} 12. a4 {[%emt 0:00:00]} Ng4 {[%emt 0:00:00]
} 13. Bxg7 {[%emt 0:00:00]} Kxg7 {[%emt 0:00:00]} 14. Qe2 {[%emt 0:00:00]} axb5
{[%emt 0:00:00]} 15. cxb5 {[%emt 0:00:00]} Nd7 {[%emt 0:00:00]} 16. Nc3 {
[%emt 0:00:00]} Nde5 {[%emt 0:00:00]} 17. Nxe5 {[%emt 0:00:00]} Nxe5 {[%emt 0:
00:00]} 18. Nd5 {[%emt 0:00:00]} Bf5 {[%emt 0:00:00]} 19. Qb2 {[%emt 0:00:00]}
f6 {[%emt 0:00:00]} 20. d4 {[%emt 0:00:00]} cxd4 {[%emt 0:00:00]} 21. exd4 {
[%emt 0:00:00]} Nd3 {[%emt 0:00:00]} 22. Qe2 {[%emt 0:00:00]} Nb4 {[%emt 0:00:
00]} 23. Qxe7+ {[%emt 0:00:00]} Qxe7 {[%emt 0:00:00]} 24. Nxe7 {[%emt 0:00:00]}
Bd3 {[%emt 0:00:00]} 25. Rfd1 {[%emt 0:00:00]} Nc2 {[%emt 0:00:00]} 26. Rac1 {
[%emt 0:00:00]} Nxd4 {[%emt 0:00:00]} 27. Rc7 {[%emt 0:00:00]} Ne6 {[%emt 0:06:
36]} 28. Rxb7 {[%emt 0:00:00]} Rxa4 {[%emt 0:00:56]} 29. Rxd3 {[%emt 0:00:00]}
Nc5 {[%emt 0:00:46]} 30. Nf5+ {[%emt 0:00:02]} Kg8 {[%emt 0:05:05]} 31. Rg7+ {
[%emt 0:01:18]} Kh8 {[%emt 0:00:04]} 32. Rf7 {[%emt 0:00:06]} Ra1+ {[%emt 0:01:
24]} 33. Bf1 {[%emt 0:00:04]} Rc8 {[%emt 0:00:15]} 34. Rc7 {[%emt 0:00:43]}
Raa8 {[%emt 0:02:32]} 35. Rxc8+ {[%emt 0:00:17]} Rxc8 {[%emt 0:00:02]} 36. Nd6
{[%emt 0:00:18]} 1-0